[Event "4NCL 2023-2024"]
[Site "Daventry"]
[Date "2024.05.04"]
[Round "9.39"]
[White "Eggleston, David J"]
[Black "Vijayakumar, Rishi"]
[Result "1/2-1/2"]
[ECO "C78"]
[WhiteElo "2334"]
[BlackElo "2197"]
[Annotator "TA"]
[PlyCount "88"]
[EventDate "2023.11.11"]
[EventType "team-tourn"]
[EventCountry "ENG"]
[SourceTitle "playchess.com"]
[Source "ChessBase"]
[SourceQuality "1"]
[TimeControl "40/6000+30:3000+30"]

{[%evp 15,88,43,27,35,32,29,23,29,24,12,10,0,0,0,0,5,0,6,2,0,0,0,0,0,0,0,0,0,0,0,0,-1,-9,-18,0,0,0,0,0,0,0,0,0,0,0,0,0,0,0,0,0,0,0,0,0,-8,-8,-18,-18,-18,-18,-18,-18,-18,-23,-23,-23,-23,-18,-18,-18,-18,-15,-18,-16]} 1. e4 {[%emt 0:05:00]} e5 {[%emt 0:01:07]} 2. Nf3 {[%emt 0:00:10]} Nc6 {[%emt 0:00:07]} 3. Bb5 {[%emt 0:01:36]} a6 {[%emt 0:00:19]} 4. Ba4 {[%emt 0:00:05]} Nf6 {[%emt 0:00:13]} 5. O-O {[%emt 0:00:20]} b5 {[%emt 0:00:20]} 6. Bb3 {[%emt 0:00:06]} Bc5 {[%emt 0:00:09]} 7. a4 {[%emt 0:00:36]} Rb8 {[%emt 0:00:16]} 8. axb5 {[%emt 0:00:06]} axb5 {[%emt 0:00:03] [#]} 9. Nxe5 $1 {[%emt 0:00:40]} Nxe5 {[%emt 0:00:06]} 10. d4 {[%emt 0:00:06]} Bxd4 {[%emt 0:00:04]} 11. Qxd4 {[%emt 0:00:07] White has an edge.} d6 {[%emt 0:00:03]} 12. f4 {[%emt 0:01:00]} Nc6 {[%emt 0:00:24]} 13. Qc3 {[%emt 0:00:08] [#] Strongly threatening e5.} Ne7 {[%emt 0:00:06][%cal Oe8g8]} 14. Qd3 {[%emt 0:00:41]} O-O {[%emt 0:00:13]} 15. Nc3 {[%emt 0:01:07]} c5 {[%emt 0:00:09]} 16. Nxb5 {[%emt 0:08:13]} Nxe4 {[%emt 0:01:24]} 17. Qxe4 {[%emt 0:05:42][%cal Of1e1]} Rxb5 {[%emt 0:00:34]} 18. Qd3 {[%emt 0:20:17]} Rb4 {[%emt 0:02:37]} 19. Bd2 {[%emt 0:07:00]} Rd4 {[%emt 0:00:40]} 20. Qe2 {[%emt 0:00:35] Ba5 is the strong threat.} Bb7 {[%emt 0:04:55]} 21. c3 {[%emt 0:18:36]} Re4 {[%emt 0:00:21]} 22. Qf2 {[%emt 0:00:16]} Nd5 {[%emt 0:29:59]} 23. Bc2 {[%emt 0:02:53]} Re7 {[%emt 0:01:03]} 24. b4 {[%emt 0:12:48]} cxb4 {[%emt 0:10:26]} 25. cxb4 {[%emt 0:00:08]} Nf6 {[%emt 0:01:55]} 26. Bc3 {[%emt 0:10:48] Hoping for Bxf6. This pair of bishops is nice.} Ne4 {[%emt 0:28:59]} 27. Bxe4 {[%emt 0:00:11]} Rxe4 {[%emt 0:02:14]} 28. Rfe1 {[%emt 0:04:52]} Rxe1+ {[%emt 0:13:07]} 29. Rxe1 {[%emt 0:00:13]} Re8 {[%emt 0:03:28]} 30. Rxe8+ {[%emt 0:01:34]} Qxe8 $11 {[%emt 0:00:03][%mdl 4096] Endgame. KQB-KQB} 31. Qg3 {[%emt 0:00:15]} Qf8 {[%emt 0:00:15]} 32. b5 {[%emt 0:01:31]} f6 {[%emt 0:02:24]} 33. Qe3 {[%emt 0:02:30]} Qc8 {[%emt 0:06:27]} 34. h3 {[%emt 0:00:47]} Kf7 {[%emt 0:00:53]} 35. Kh2 {[%emt 0:00:54]} Qc4 {[%emt 0:01:24]} 36. b6 {[%emt 0:01:40]} Qc6 {[%emt 0:00:33]} 37. Qf3 {[%emt 0:03:22]} Qxf3 {[%emt 0:01:07]} 38. gxf3 {[%emt 0:00:04]} Bxf3 {[%emt 0:00:22] KB-KB} 39. Kg3 {[%emt 0:00:03]} Bb7 {[%emt 0:00:11]} 40. f5 {[%emt 0:01:58]} Ke7 {[%emt 0:00:54]} 41. h4 {[%emt 0:52:02]} h5 {[%emt 0:03:39]} 42. Kf4 {[%emt 0:00:00] The position is equal.} Kd7 {[%emt 0:00:11]} 43. Bb4 {[%emt 0:00:00]} Kc6 {[%emt 0:00:24]} 44. Ba3 {[%emt 0:00:00]} Kd5 {[%emt 0:00:15] Weighted Error Value: White=0.02 (flawless) /Black=0.01 (flawless) .  OK:         	White=13    	Black=25     Best:        	White=2     	Black=1} 1/2-1/2

[Event "4NCL 2023-2024"]
[Site "Daventry"]
[Date "2024.05.04"]
[Round "9.40"]
[White "Cooke, Suzie G."]
[Black "Steil-Antoni, Fiona"]
[Result "0-1"]
[ECO "B07"]
[WhiteElo "1955"]
[BlackElo "2106"]
[Annotator "RC"]
[PlyCount "112"]
[EventDate "2023.11.11"]
[EventType "team-tourn"]
[EventCountry "ENG"]
[SourceTitle "playchess.com"]
[Source "ChessBase"]
[SourceQuality "1"]
[TimeControl "40/6000+30:3000+30"]

1. d4 {[%emt 0:00:03]} d6 {[%emt 0:03:02]} 2. Nc3 {[%emt 0:00:52]} Nf6 {[%emt 0:00:00]} 3. e4 {[%emt 0:00:00]} Nbd7 {[%emt 0:00:00]} 4. g4 {[%emt 0:00:12]} h6 {[%emt 0:00:00]} 5. h3 {[%emt 0:00:25]} e5 {[%emt 0:01:06]} 6. Nge2 {[%emt 0:01:36]} c6 {[%emt 0:02:46]} 7. Be3 {[%emt 0:01:53]} b5 {[%emt 0:04:16]} 8. d5 {[%emt 0:05:38]} c5 {[%emt 0:10:56]} 9. Ng3 {[%emt 0:05:23]} a6 {[%emt 0:06:09]} 10. a4 {[%emt 0:11:49]} b4 {[%emt 0:01:54]} 11. Nb1 {[%emt 0:00:27]} a5 {[%emt 0:05:49]} 12. c4 {[%emt 0:06:55]} g6 {[%emt 0:05:20]} 13. Nd2 {[%emt 0:07:41]} h5 {[%emt 0:10:15]} 14. g5 {[%emt 0:06:26]} h4 {[%emt 0:04:33]} 15. gxf6 {[%emt 0:01:46]} hxg3 {[%emt 0:00:14]} 16. fxg3 {[%emt 0:00:17]} Nxf6 {[%emt 0:01:52]} 17. Bg2 {[%emt 0:03:58]} Nh5 {[%emt 0:06:27]} 18. Qf3 {[%emt 0:02:26]} Be7 {[%emt 0:01:26]} 19. O-O {[%emt 0:01:49]} Rh7 {[%emt 0:11:30]} 20. g4 {[%emt 0:03:34]} Nf6 {[%emt 0:00:49]} 21. Rf2 {[%emt 0:06:04]} Bd7 {[%emt 0:02:29]} 22. b3 {[%emt 0:00:09]} Ng8 {[%emt 0:08:35]} 23. Nf1 {[%emt 0:05:06]} Bh4 {[%emt 0:01:13]} 24. Re2 {[%emt 0:02:57]} Qe7 {[%emt 0:00:28]} 25. Bf2 {[%emt 0:02:31]} O-O-O {[%emt 0:03:20]} 26. Bxh4 {[%emt 0:01:47]} Qxh4 {[%emt 0:00:19]} 27. Qg3 {[%emt 0:02:11]} Qg5 {[%emt 0:02:09]} 28. Rf2 {[%emt 0:03:55]} Rf8 {[%emt 0:03:08]} 29. Qe3 {[%emt 0:01:01]} Qe7 {[%emt 0:00:58]} 30. Qd3 {[%emt 0:06:43]} Nh6 {[%emt 0:01:24]} 31. Ne3 {[%emt 0:01:06]} Qh4 {[%emt 0:01:23]} 32. Rf3 {[%emt 0:01:50]} f5 {[%emt 0:02:09]} 33. exf5 {[%emt 0:02:00]} gxf5 {[%emt 0:00:37]} 34. Nxf5 {[%emt 0:03:01]} Nxf5 {[%emt 0:01:09]} 35. Qf1 {[%emt 0:00:45]} Rhf7 {[%emt 0:04:25]} 36. gxf5 {[%emt 0:00:55]} Rxf5 {[%emt 0:01:02]} 37. Rxf5 {[%emt 0:00:10]} Rxf5 {[%emt 0:00:19]} 38. Qe1 {[%emt 0:01:18]} Qd4+ {[%emt 0:01:57]} 39. Kh1 {[%emt 0:01:37]} Rf2 {[%emt 0:01:32]} 40. Rb1 {[%emt 0:01:56]} Kc7 {[%emt 0:01:51]} 41. Rd1 {[%emt 0:13:49]} Qf4 {[%emt 0:02:22]} 42. Rd3 {[%emt 0:03:01]} Bf5 {[%emt 0:13:51]} 43. Re3 {[%emt 0:01:38]} Kb6 {[%emt 0:05:20]} 44. Kg1 {[%emt 0:03:33]} Rb2 {[%emt 0:03:37]} 45. Qg3 {[%emt 0:06:36]} Qxg3 {[%emt 0:10:42]} 46. Rxg3 {[%emt 0:00:04]} Bc2 {[%emt 0:00:24]} 47. h4 {[%emt 0:02:41]} Rxb3 {[%emt 0:02:15]} 48. Rxb3 {[%emt 0:00:14]} Bxb3 {[%emt 0:00:08]} 49. Be4 {[%emt 0:00:16]} Bd1 {[%emt 0:02:52]} 50. Bg6 {[%emt 0:00:06]} b3 {[%emt 0:02:14]} 51. h5 {[%emt 0:00:07]} Bc2 {[%emt 0:02:01]} 52. Kf2 {[%emt 0:01:57]} e4 {[%emt 0:01:58]} 53. Ke3 {[%emt 0:02:33]} b2 {[%emt 0:00:09]} 54. h6 {[%emt 0:00:01]} b1=Q {[%emt 0:00:14]} 55. h7 {[%emt 0:00:03]} Qc1+ {[%emt 0:00:49]} 56. Ke2 {[%emt 0:00:12]} Qh6 {[%emt 0:00:52]} 0-1

[Event "4NCL 2023-2024"]
[Site "Daventry"]
[Date "2024.05.04"]
[Round "9.41"]
[White "Claridge-Hansen, William"]
[Black "Cherniaev, Alexander"]
[Result "1-0"]
[ECO "A44"]
[WhiteElo "2360"]
[BlackElo "2363"]
[Annotator "TA"]
[PlyCount "91"]
[EventDate "2023.11.11"]
[EventType "team-tourn"]
[EventCountry "ENG"]
[SourceTitle "playchess.com"]
[Source "ChessBase"]
[SourceQuality "1"]
[TimeControl "40/6000+30:3000+30"]

{[%evp 9,91,80,91,70,91,68,69,76,81,70,75,79,91,55,64,54,41,32,34,36,32,33,41,30,30,47,52,39,113,125,147,150,138,135,131,135,134,141,139,125,136,132,139,132,132,132,132,118,132,118,125,125,125,77,77,90,102,43,48,41,49,0,53,14,47,47,80,73,76,73,118,106,108,122,126,126,264,126,126,112,853,846,827,814]} 1. d4 {[%emt 0:00:05]} c5 {[%emt 0:01:08]} 2. d5 {[%emt 0:00:19]} e5 {[%emt 0:00:05]} 3. e4 {[%emt 0:00:48]} d6 {[%emt 0:00:05]} 4. Bb5+ {[%emt 0:01:58]} Nd7 {[%emt 0:00:32]} 5. a4 {[%emt 0:01:13]} Be7 {[%emt 0:04:37]} 6. Nf3 {[%emt 0:04:37]} Ngf6 {[%emt 0:00:08]} 7. Nc3 {[%emt 0:01:00]} O-O {[%emt 0:00:10]} 8. h3 {[%emt 0:07:16] White is slightly better.} Ne8 {[%emt 0:07:49]} 9. O-O {[%emt 0:04:10] Black is weak on the light squares} Kh8 {[%emt 0:09:55]} 10. Bd3 {[%emt 0:24:54]} Ndf6 {[%emt 0:00:39]} 11. Kh2 {[%emt 0:12:45]} g6 {[%emt 0:06:41]} 12. Bh6 {[%emt 0:22:34]} Ng7 $1 {[%emt 0:00:22]} 13. Nd2 {[%emt 0:01:04][%cal Bf3d2,Bd2c4,Bc4e3][%mdl 32]} Ng8 {[%emt 0:01:23]} 14. Be3 {[%emt 0:01:20]} f5 {[%emt 0:01:19]} 15. exf5 {[%emt 0:00:58]} gxf5 {[%emt 0:00:28]} 16. f4 $36 {[%emt 0:00:54][%mdl 2048] White is pushing.} e4 {[%emt 0:02:39]} 17. Be2 {[%emt 0:00:19]} Bf6 {[%emt 0:07:02]} 18. Nc4 {[%emt 0:01:13]} Bxc3 {[%emt 0:00:25]} (18... b6 $14) 19. bxc3 $16 {[%emt 0:00:47]} Nf6 {[%emt 0:00:02][%cal Of6g4]} 20. Bc1 {[%emt 0:01:36][%cal Be3c1,Bc1b2,Bb2c3][%mdl 32]} h5 {[%emt 0:07:05]} 21. g3 {[%emt 0:00:12]} Kg8 {[%emt 0:03:06]} 22. Ne3 {[%emt 0:00:24]} Kf7 {[%emt 0:00:11]} 23. c4 {[%emt 0:00:34]} Rh8 {[%emt 0:00:31]} 24. Bb2 {[%emt 0:01:02]} Bd7 {[%emt 0:04:48]} 25. Bc3 {[%emt 0:00:17]} Qc7 {[%emt 0:00:14]} 26. Rg1 {[%emt 0:00:58]} Rh6 {[%emt 0:04:20]} 27. Ra3 {[%emt 0:01:50]} Rah8 {[%emt 0:04:04]} 28. Qa1 {[%emt 0:01:19]} Bc8 {[%emt 0:00:15]} 29. Rb3 {[%emt 0:01:44]} Qe7 {[%emt 0:09:20]} 30. Be1 {[%emt 0:03:56] White is much more active.} Rg6 {[%emt 0:05:58]} 31. Rg2 {[%emt 0:04:01]} (31. Ng2 $142) 31... Rg8 {[%emt 0:05:39]} 32. Bf2 {[%emt 0:01:42]} Nge8 {[%emt 0:03:12]} 33. Kg1 {[%emt 0:00:31]} (33. Qd1 $16) 33... Kf8 $14 {[%emt 0:01:30]} 34. Qd1 {[%emt 0:03:23]} Qh7 {[%emt 0:05:26]} 35. Qf1 {[%emt 0:02:05]} (35. Kh1 $14) 35... R6g7 {[%emt 0:03:42]} ({Better is} 35... h4 $11 36. gxh4 Nh5) 36. Be1 {[%emt 0:00:27]} Qh6 {[%emt 0:04:36][%cal Oh5h4]} 37. Qf2 {[%emt 0:00:56]} h4 {[%emt 0:00:22]} 38. gxh4 {[%emt 0:00:53]} Rxg2+ {[%emt 0:00:08]} 39. Nxg2 {[%emt 0:00:01]} Nh5 {[%emt 0:02:44]} 40. Bxh5 {[%emt 0:02:42]} Qxh5 {[%emt 0:00:05]} 41. Rg3 {[%emt 0:04:16] Against Qg6} Rxg3 {[%emt 0:00:33]} 42. Qxg3 {[%emt 0:00:34] [#] Hoping for Qg5.} Bd7 {[%emt 0:08:52]} (42... Nf6 $16) 43. a5 {[%emt 0:03:30]} (43. Qg5 $18 {and the rest is easy.} Qxg5 44. fxg5) 43... Nf6 {[%emt 0:07:08]} 44. Bc3 {[%emt 0:05:02]} Qd1+ $2 {[%emt 0:00:27][%mdl 8192]} (44... Qf3 $16 45. Qxf3 exf3) 45. Kh2 $18 {[%emt 0:00:43]} Nh5 {[%emt 0:02:50]} 46. Qg6 {[%emt 0:01:58] Weighted Error Value: White=0.15 (very precise) /Black=0.14 (very precise) .  Loses game:     	---       	Black=1      Mistake:       	White=4     	Black=3      Inaccurate:     	White=2     	Black=3      OK:         	White=12    	Black=10     Best:        	White=4     	Black=4      Strong:       	---       	Black=1} 1-0

[Event "4NCL 2023-2024"]
[Site "Daventry"]
[Date "2024.05.04"]
[Round "9.42"]
[White "Macak, Stefan"]
[Black "Macfarlane, Donald"]
[Result "1/2-1/2"]
[ECO "B48"]
[WhiteElo "2330"]
[BlackElo "2184"]
[Annotator "ChessBase"]
[PlyCount "61"]
[EventDate "2023.11.11"]
[EventType "team-tourn"]
[EventCountry "ENG"]
[SourceTitle "playchess.com"]
[Source "ChessBase"]
[SourceQuality "1"]
[TimeControl "40/6000+30:3000+30"]

1. e4 {[%emt 0:00:15]} c5 {[%emt 0:00:23]} 2. Nf3 {[%emt 0:00:17]} e6 {[%emt 0:00:42]} 3. d4 {[%emt 0:00:17]} cxd4 {[%emt 0:00:14]} 4. Nxd4 {[%emt 0:00:02]} Nc6 {[%emt 0:00:22]} 5. Nc3 {[%emt 0:01:45]} Qc7 {[%emt 0:00:44]} 6. Be3 {[%emt 0:06:08]} a6 {[%emt 0:01:27]} 7. Qd2 {[%emt 0:03:55]} b5 {[%emt 0:13:58]} 8. Nxc6 {[%emt 0:07:30]} Qxc6 {[%emt 0:11:50]} 9. O-O-O {[%emt 0:03:39]} Bc5 {[%emt 0:07:31]} 10. Be2 {[%emt 0:18:59]} b4 {[%emt 0:12:45]} 11. Bxc5 {[%emt 0:07:06]} Qxc5 {[%emt 0:00:08]} 12. Na4 {[%emt 0:01:11]} Qa5 {[%emt 0:01:22]} 13. b3 {[%emt 0:08:27]} Nf6 {[%emt 0:09:26]} 14. Bf3 {[%emt 0:21:25]} O-O {[%emt 0:03:15]} 15. Qd6 {[%emt 0:06:11]} Bb7 {[%emt 0:08:37]} 16. Qc5 {[%emt 0:04:19]} Qxc5 {[%emt 0:03:46]} 17. Nxc5 {[%emt 0:00:02]} Bc6 {[%emt 0:00:12]} 18. e5 {[%emt 0:04:31]} Bxf3 {[%emt 0:01:05]} 19. gxf3 {[%emt 0:00:16]} Nd5 {[%emt 0:09:51]} 20. Nxd7 {[%emt 0:00:31]} Rfd8 {[%emt 0:04:46]} 21. Nc5 {[%emt 0:00:27]} Rdc8 {[%emt 0:02:56]} 22. Ne4 {[%emt 0:04:27]} a5 {[%emt 0:00:22]} 23. Rd2 {[%emt 0:08:42]} a4 {[%emt 0:00:39]} 24. Kb1 {[%emt 0:00:39]} Kf8 {[%emt 0:00:57]} 25. Rc1 {[%emt 0:01:23]} Rc6 {[%emt 0:00:26]} 26. Nd6 {[%emt 0:00:33]} Rca6 {[%emt 0:03:06]} 27. Ne4 {[%emt 0:00:05]} Rc6 {[%emt 0:01:04]} 28. Nd6 {[%emt 0:00:21]} Ke7 {[%emt 0:02:10]} 29. Nf5+ {[%emt 0:00:43]} Kf8 {[%emt 0:10:56]} 30. Nd4 {[%emt 0:01:24]} Rca6 31. Ne2 {[%emt 0:00:00]} 1/2-1/2

[Event "4NCL 2023-2024"]
[Site "Daventry"]
[Date "2024.05.04"]
[Round "9.43"]
[White "Zakarian, David"]
[Black "Rocco, Federico"]
[Result "1-0"]
[ECO "B51"]
[WhiteElo "2293"]
[BlackElo "2163"]
[Annotator "NA"]
[PlyCount "79"]
[EventDate "2023.11.11"]
[EventType "team-tourn"]
[EventCountry "ENG"]
[SourceTitle "playchess.com"]
[Source "ChessBase"]
[SourceQuality "1"]
[TimeControl "40/6000+30:3000+30"]

1. e4 {[%emt 0:04:40]} c5 {[%emt 0:00:08]} 2. Nf3 {[%emt 0:00:06]} d6 {[%emt 0:00:08]} 3. Bb5+ {[%emt 0:00:10]} Nd7 {[%emt 0:00:08]} 4. Ba4 {[%emt 0:00:14]} Ngf6 {[%emt 0:00:27]} 5. O-O {[%emt 0:00:13]} e5 {[%emt 0:00:49]} 6. c3 {[%emt 0:05:11]} Be7 {[%emt 0:00:22]} 7. d4 {[%emt 0:00:25]} Qc7 {[%emt 0:01:26]} 8. dxe5 {[%emt 0:07:17]} dxe5 {[%emt 0:00:16]} 9. Bg5 {[%emt 0:00:14]} O-O {[%emt 0:01:23]} 10. Qe2 {[%emt 0:01:35]} Nb6 {[%emt 0:08:46]} 11. Bc2 {[%emt 0:03:15]} Be6 {[%emt 0:06:52]} 12. Nbd2 {[%emt 0:06:41]} c4 {[%emt 0:18:55]} 13. Rfd1 {[%emt 0:10:12]} Rfd8 {[%emt 0:13:48]} 14. Nf1 {[%emt 0:00:26]} h6 {[%emt 0:04:14]} 15. Bh4 {[%emt 0:01:00]} Nh5 {[%emt 0:03:42]} 16. Bxe7 {[%emt 0:03:24]} Nf4 {[%emt 0:00:43]} 17. Qe3 {[%emt 0:05:20]} Qxe7 {[%emt 0:00:17]} 18. a4 {[%emt 0:04:28]} Qc7 {[%emt 0:05:12]} 19. Nh4 {[%emt 0:04:54]} Rxd1 {[%emt 0:03:46]} 20. Rxd1 {[%emt 0:00:16]} Rd8 {[%emt 0:00:31]} 21. Rxd8+ {[%emt 0:03:13]} Qxd8 {[%emt 0:00:09]} 22. g3 {[%emt 0:04:35]} Nd3 {[%emt 0:02:25]} 23. a5 {[%emt 0:02:09]} Nc8 {[%emt 0:00:24]} 24. b4 {[%emt 0:01:03]} cxb3 {[%emt 0:04:00]} 25. Qxd3 {[%emt 0:02:02]} Qxa5 {[%emt 0:00:10]} 26. Bb1 {[%emt 0:01:31]} Qc5 {[%emt 0:01:37]} 27. Nd2 {[%emt 0:17:01]} a5 {[%emt 0:04:12]} 28. Nf5 {[%emt 0:02:51]} a4 {[%emt 0:01:10]} 29. c4 {[%emt 0:00:19]} Kh7 {[%emt 0:02:19]} 30. Kg2 {[%emt 0:01:50]} b5 {[%emt 0:02:44]} 31. cxb5 {[%emt 0:02:16]} Qb4 {[%emt 0:00:42]} 32. Ne3 {[%emt 0:00:29]} Nd6 {[%emt 0:03:10]} 33. h4 {[%emt 0:09:49]} Kg8 {[%emt 0:04:09]} 34. Nd5 {[%emt 0:01:07]} Qc5 {[%emt 0:03:04]} 35. b6 {[%emt 0:01:16]} Bxd5 {[%emt 0:03:16]} 36. Qxd5 {[%emt 0:00:12]} Qxb6 {[%emt 0:01:40]} 37. Qa8+ {[%emt 0:00:31]} Kh7 {[%emt 0:00:35]} 38. Qxa4 {[%emt 0:00:09]} b2 {[%emt 0:00:41]} 39. Qb3 {[%emt 0:02:26]} Qd4 {[%emt 0:00:37]} 40. Nf3 {[%emt 0:00:15]} 1-0

[Event "4NCL 2023-2024"]
[Site "Daventry"]
[Date "2024.05.04"]
[Round "9.44"]
[White "Villiers, Thomas"]
[Black "Hobson, Kenneth"]
[Result "0-1"]
[ECO "C34"]
[WhiteElo "2232"]
[BlackElo "2190"]
[Annotator "NA RC"]
[PlyCount "106"]
[EventDate "2023.11.11"]
[EventType "team-tourn"]
[EventCountry "ENG"]
[SourceTitle "playchess.com"]
[Source "ChessBase"]
[SourceQuality "1"]
[TimeControl "40/6000+30:3000+30"]

1. e4 {[%emt 0:00:01]} e5 {[%emt 0:00:29]} 2. f4 {[%emt 0:00:03]} exf4 {[%emt 0:02:46]} 3. Nf3 {[%emt 0:00:06]} Nf6 {[%emt 0:00:20]} 4. e5 {[%emt 0:00:17]} Nh5 {[%emt 0:03:24]} 5. d4 {[%emt 0:00:14]} d6 {[%emt 0:01:29]} 6. Bc4 {[%emt 0:04:28]} d5 {[%emt 0:06:30]} 7. Bd3 {[%emt 0:00:53]} g5 {[%emt 0:04:44]} 8. O-O {[%emt 0:00:17]} Nc6 {[%emt 0:01:45]} 9. Bb5 {[%emt 0:07:24]} Be6 {[%emt 0:16:38]} 10. c4 {[%emt 0:08:08]} g4 {[%emt 0:03:42]} 11. Nc3 {[%emt 0:00:08]} a6 {[%emt 0:05:20]} 12. Ba4 {[%emt 0:01:26]} dxc4 {[%emt 0:05:07]} 13. d5 {[%emt 0:01:23]} Bc5+ {[%emt 0:01:41]} 14. Kh1 {[%emt 0:00:06]} gxf3 {[%emt 0:01:07]} 15. Qxf3 {[%emt 0:00:40]} Qh4 {[%emt 0:17:49]} 16. Bxf4 {[%emt 0:01:09]} Bg4 {[%emt 0:01:45]} 17. Qe4 {[%emt 0:02:43]} b5 {[%emt 0:03:44]} 18. Bc2 {[%emt 0:06:23]} Nd4 {[%emt 0:01:23]} 19. d6 {[%emt 0:01:35]} c6 {[%emt 0:00:42]} 20. e6 {[%emt 0:03:49]} fxe6 {[%emt 0:07:54]} 21. Qe5 {[%emt 0:00:38]} O-O {[%emt 0:04:18]} 22. g3 {[%emt 0:01:15]} Bf3+ {[%emt 0:02:42]} 23. Rxf3 {[%emt 0:00:07]} Qxh2+ {[%emt 0:00:02]} 24. Kxh2 {[%emt 0:00:09]} Nxf3+ {[%emt 0:00:01]} 25. Kh3 {[%emt 0:00:45]} Nxf4+ {[%emt 0:02:01]} 26. Qxf4 {[%emt 0:00:09]} Rxf4 {[%emt 0:00:04]} 27. gxf4 {[%emt 0:00:05]} Nd4 {[%emt 0:00:53]} 28. Rg1+ {[%emt 0:03:38]} Kf7 {[%emt 0:03:12]} 29. Ne4 {[%emt 0:01:46]} Bxd6 {[%emt 0:02:00]} 30. Nxd6+ {[%emt 0:00:55]} Ke7 {[%emt 0:00:03]} 31. Ne4 {[%emt 0:01:05]} Nxc2 {[%emt 0:04:02]} 32. Rg7+ {[%emt 0:00:06]} Kf8 {[%emt 0:00:02]} 33. Rxh7 {[%emt 0:00:07]} Re8 {[%emt 0:01:35]} 34. Nf6 {[%emt 0:00:23]} Re7 {[%emt 0:00:31]} 35. Nd7+ {[%emt 0:00:29]} Ke8 {[%emt 0:00:05]} 36. Nf6+ {[%emt 0:00:03]} Kd8 {[%emt 0:00:57]} 37. Rh8+ {[%emt 0:00:34]} Kc7 {[%emt 0:00:06]} 38. Kg4 {[%emt 0:01:04]} Nb4 {[%emt 0:01:18]} 39. a3 {[%emt 0:01:29]} Nd3 {[%emt 0:00:42]} 40. Rh2 {[%emt 0:00:10]} Rg7+ {[%emt 0:00:40]} 41. Kf3 {[%emt 0:50:21]} Rf7 {[%emt 0:50:30]} 42. Nh5 {[%emt 0:00:53]} Nxf4 {[%emt 0:04:00]} 43. Nxf4 {[%emt 0:00:06]} e5 {[%emt 0:00:03]} 44. Ke4 {[%emt 0:00:05]} exf4 {[%emt 0:00:05]} 45. Kf3 {[%emt 0:00:09]} Rf6 {[%emt 0:00:41]} 46. Re2 {[%emt 0:00:49]} Kb6 {[%emt 0:00:45]} 47. Re8 {[%emt 0:00:07]} Ka5 {[%emt 0:00:40]} 48. Ra8 {[%emt 0:00:07]} Rd6 {[%emt 0:01:00]} 49. Kxf4 {[%emt 0:00:07]} Rd2 {[%emt 0:00:07]} 50. Rc8 {[%emt 0:00:10]} Rxb2 {[%emt 0:01:40]} 51. Rxc6 {[%emt 0:00:06]} Ra2 {[%emt 0:00:16]} 52. Ke3 {[%emt 0:00:03]} Rxa3+ {[%emt 0:00:12]} 53. Kd4 {[%emt 0:00:05]} Kb4 {[%emt 0:00:09]} 0-1

[Event "4NCL 2023-2024"]
[Site "Daventry"]
[Date "2024.05.04"]
[Round "9.45"]
[White "Khoury, Theo"]
[Black "Badacsonyi, Stanley"]
[Result "0-1"]
[ECO "C11"]
[WhiteElo "2071"]
[BlackElo "2156"]
[Annotator "NA"]
[PlyCount "90"]
[EventDate "2023.11.11"]
[EventType "team-tourn"]
[EventCountry "ENG"]
[SourceTitle "playchess.com"]
[Source "ChessBase"]
[SourceQuality "1"]
[TimeControl "40/6000+30:3000+30"]

1. e4 {[%emt 0:00:10]} e6 {[%emt 0:00:07]} 2. d4 {[%emt 0:00:07]} d5 {[%emt 0:00:08]} 3. Nc3 {[%emt 0:00:27]} Nf6 {[%emt 0:00:11]} 4. e5 {[%emt 0:00:06]} Nfd7 {[%emt 0:00:02]} 5. f4 {[%emt 0:00:09]} c5 {[%emt 0:00:05]} 6. Nf3 {[%emt 0:00:05]} Nc6 {[%emt 0:00:03]} 7. Be3 {[%emt 0:00:10]} Be7 {[%emt 0:00:37]} 8. Qd2 {[%emt 0:00:07]} a6 {[%emt 0:00:04]} 9. dxc5 {[%emt 0:01:56]} Bxc5 {[%emt 0:00:53]} 10. O-O-O {[%emt 0:01:01]} Qb6 {[%emt 0:04:07]} 11. Bxc5 {[%emt 0:04:55]} Nxc5 {[%emt 0:00:43]} 12. g4 {[%emt 0:10:24]} Bd7 {[%emt 0:02:41]} 13. Bg2 {[%emt 0:08:42]} O-O-O {[%emt 0:06:44]} 14. Nd4 {[%emt 0:03:15]} Kb8 {[%emt 0:03:06]} 15. Nxc6+ {[%emt 0:04:23]} bxc6 {[%emt 0:07:08]} 16. Qd4 {[%emt 0:02:21]} Ka7 {[%emt 0:02:05]} 17. Rhf1 {[%emt 0:13:20]} Nb7 {[%emt 0:06:05]} 18. Qxb6+ {[%emt 0:02:57]} Kxb6 {[%emt 0:00:13]} 19. f5 {[%emt 0:03:02]} h5 {[%emt 0:07:51]} 20. fxe6 {[%emt 0:04:53]} Bxe6 {[%emt 0:00:28]} 21. g5 {[%emt 0:00:09]} h4 {[%emt 0:03:58]} 22. Bf3 {[%emt 0:03:59]} Nc5 {[%emt 0:05:17]} 23. Rd4 {[%emt 0:04:40]} Nd7 {[%emt 0:01:59]} 24. Re1 {[%emt 0:00:16]} Rde8 {[%emt 0:00:09]} 25. Rf4 {[%emt 0:02:27]} g6 {[%emt 0:02:41]} 26. Ne2 {[%emt 0:11:53]} Nxe5 {[%emt 0:01:47]} 27. Nd4 {[%emt 0:00:19]} Bd7 {[%emt 0:04:22]} 28. Kd1 {[%emt 0:00:49]} c5 {[%emt 0:01:20]} 29. Rf6+ {[%emt 0:01:28]} Kc7 {[%emt 0:01:00]} 30. Ne2 {[%emt 0:02:17]} Nxf3 {[%emt 0:01:18]} 31. Rxf3 {[%emt 0:00:08]} Bf5 {[%emt 0:01:58]} 32. Kd2 {[%emt 0:06:40]} Kd6 {[%emt 0:01:52]} 33. Ra3 {[%emt 0:02:11]} Ra8 {[%emt 0:02:36]} 34. Nf4 {[%emt 0:03:05]} a5 {[%emt 0:02:56]} 35. Rae3 {[%emt 0:01:07]} h3 {[%emt 0:03:58]} 36. c4 {[%emt 0:09:05]} Rab8 {[%emt 0:06:00]} 37. b3 {[%emt 0:01:28]} dxc4 {[%emt 0:01:19]} 38. Kc3 {[%emt 0:00:10]} cxb3 {[%emt 0:00:37]} 39. axb3 {[%emt 0:00:08]} Rh4 {[%emt 0:02:47]} 40. Rd1+ {[%emt 0:00:46]} Kc6 {[%emt 0:01:10]} 41. Nd5 {[%emt 0:51:12]} Be6 {[%emt 0:52:10]} 42. Ne7+ {[%emt 0:01:39]} Kc7 {[%emt 0:00:17]} 43. Nd5+ {[%emt 0:01:32]} Kb7 {[%emt 0:00:26]} 44. Nf6 {[%emt 0:00:00]} Kc6 {[%emt 0:00:00]} 45. Kc2 {[%emt 0:00:00]} Rhb4 {[%emt 0:00:00]} 0-1